fUST/lending_fUST_20250123
["ID","MTS","AMOUNT","RATE_DAILY","PERIOD"]
[350032351,1737582643507,-500.0,0.00019178,2]
[350032353,1737582643516,-312.348874,0.00019178,2]
[350032355,1737582643526,-312.348874,0.00019178,2]
[350032357,1737582643535,-446.78075459,0.00019178,2]
[350032359,1737582643545,-1454.386226,0.00019178,2]
[350032360,1737582643554,-1454.386226,0.00019178,2]
[350032361,1737582643564,-151.0,0.00019178,2]
[350032362,1737582643573,-1454.386226,0.00019178,2]
[350032363,1737582643583,-151.0,0.00019178,2]
[350032364,1737582643592,-151.0,0.00019178,2]
[350032365,1737582643601,-1454.386226,0.00019178,2]
[350032366,1737582643610,-151.0,0.00019178,2]
[350032367,1737582643619,-1454.386226,0.00019178,2]
[350032368,1737582643628,-151.0,0.00019178,2]
[350032369,1737582643637,-151.0,0.00019178,2]
[350032370,1737582643646,-151.0,0.00019178,2]
[350032371,1737582643656,-151.0,0.00019178,2]
[350032372,1737582643665,-312.348874,0.00019178,2]
[350032373,1737582643673,-151.0,0.00019178,2]
[350032374,1737582643682,-312.348874,0.00019178,2]
[350032375,1737582643691,-151.0,0.00019178,2]
[350032376,1737582643700,-312.348874,0.00019178,2]
[350032377,1737582643709,-312.348874,0.00019178,2]
[350032378,1737582643718,-312.348874,0.00019178,2]
[350032379,1737582643727,-500.0,0.00019178,2]
[350032380,1737582643736,-500.0,0.00019178,2]
[350032381,1737582643746,-151.0,0.00019178,2]
[350032382,1737582643755,-899.15,0.00019178,2]
[350032383,1737582643763,-151.0,0.00019178,2]
[350032384,1737582643772,-151.0,0.00019178,2]
[350032385,1737582643781,-151.0,0.00019178,2]
[350032386,1737582643790,-151.0,0.00019178,2]
[350032388,1737582643799,-489.02637761,0.00019178,2]
[350032389,1737582643807,-500.0,0.00019178,2]
[350032390,1737582643816,-500.0,0.00019178,2]
[350032392,1737582643825,-500.0,0.00019178,2]
[350032394,1737582643834,-500.0,0.00019178,2]
[350032396,1737582643843,-502.48133731,0.00019178,2]
[350032398,1737582643852,-500.0,0.00019178,2]
[350032400,1737582643861,-151.0,0.00019178,2]
[350032402,1737582643870,-552.94,0.00019178,2]
[350032404,1737582643879,-151.0,0.00019178,2]
[350032406,1737582643888,-151.0,0.00019178,2]
[350032408,1737582643896,-151.0,0.00019178,2]
[350032410,1737582643905,-151.0,0.00019178,2]
[350032412,1737582643914,-730.05,0.00019178,2]
[350032414,1737582643923,-500.0,0.00019178,2]
[350032416,1737582643933,-7494.92,0.00019178,2]
[350032418,1737582643942,-500.0,0.00019178,2]
[350032420,1737582643951,-500.0,0.00019178,2]
[350032422,1737582643960,-500.0,0.00019178,2]
[350032424,1737582643969,-500.0,0.00019178,2]
[350032426,1737582643978,-154.61577566,0.00019178,2]
[350032428,1737582643986,-500.0,0.00019178,2]
[350032438,1737582644068,-151.0,0.00019178,2]
[350032441,1737582644088,-151.0,0.00019178,2]
[350032443,1737582644097,-500.0,0.00019178,2]
[350032445,1737582644106,-151.0,0.00019178,2]
[350032447,1737582644115,-151.0,0.00019178,2]
[350032449,1737582644125,-151.0,0.00019178,2]
[350032451,1737582644135,-151.0,0.00019178,2]
[350032453,1737582644143,-264.44047,0.00019178,2]
[350032455,1737582644152,-500.0,0.00019178,2]
[350032457,1737582644161,-500.0,0.00019178,2]
[350032459,1737582644170,-11318.65,0.00019178,2]
[350032461,1737582644179,-500.0,0.00019178,2]
[350032463,1737582644188,-151.0,0.00019178,2]
[350032464,1737582644197,-151.0,0.00019178,2]
[350032467,1737582644207,-500.0,0.00019178,2]
[350032469,1737582644217,-4208.09,0.00019178,2]
[350032470,1737582644226,-500.0,0.00019178,2]
[350032473,1737582644235,-1256.04,0.00019178,2]
[350032474,1737582644244,-500.0,0.00019178,2]
[350032476,1737582644254,-637.9,0.00019178,2]
[350032478,1737582644263,-500.0,0.00019178,2]
[350032481,1737582644272,-1610.24,0.00019178,2]
[350032482,1737582644281,-362.95186705,0.00019178,2]
[350032484,1737582644290,-500.0,0.00019178,2]
[350032486,1737582644300,-500.0,0.00019178,2]
[350032489,1737582644310,-308.302734,0.00019178,2]
[350032491,1737582644319,-308.302734,0.00019178,2]
[350032493,1737582644328,-308.302734,0.00019178,2]
[350032495,1737582644338,-308.302734,0.00019178,2]
[350032497,1737582644347,-308.302734,0.00019178,2]
[350032498,1737582644356,-308.302734,0.00019178,2]
[350032501,1737582644365,-500.0,0.00019178,2]
[350032502,1737582644375,-308.302734,0.00019178,2]
[350032505,1737582644385,-308.302734,0.00019178,2]
[350032507,1737582644394,-308.302734,0.00019178,2]
[350032509,1737582644403,-308.302734,0.00019178,2]
[350032511,1737582644412,-882.43,0.00019178,2]
[350032513,1737582644421,-35.21673923,0.00019178,2]
[350032530,1737582644582,-398.50461881,0.00018746,2]
[350032532,1737582644592,-273.08599477,0.00019178,2]
[350032534,1737582644601,-308.302734,0.00019178,2]
[350032536,1737582644611,-500.0,0.00019178,2]
[350032538,1737582644620,-151.331147,0.00019178,2]
[350032540,1737582644629,-803.56,0.00019178,2]
[350032542,1737582644638,-500.0,0.00019178,2]
[350032544,1737582644648,-500.0,0.00019178,2]
[350032546,1737582644657,-500.0,0.00019178,2]
[350032548,1737582644667,-500.0,0.00019178,2]
[350032550,1737582644676,-151.0,0.00019178,2]
[350032552,1737582644685,-151.0,0.00019178,2]
[350032554,1737582644694,-151.0,0.00019178,2]
[350032556,1737582644703,-500.0,0.00019178,2]
[350032559,1737582644713,-151.0,0.00019178,2]
[350032560,1737582644722,-151.0,0.00019178,2]
[350032562,1737582644731,-151.0,0.00019178,2]
[350032565,1737582644740,-151.0,0.00019178,2]
[350032567,1737582644749,-151.0,0.00019178,2]
[350032569,1737582644758,-151.0,0.00019178,2]
[350032571,1737582644767,-1821.63,0.00019178,2]
[350032572,1737582644777,-656.32,0.00019178,2]
[350032575,1737582644788,-500.0,0.00019178,2]
[350032577,1737582644798,-500.0,0.00019178,2]
[350032578,1737582644807,-151.0,0.00019178,2]
[350032580,1737582644817,-151.0,0.00019178,2]
[350032582,1737582644826,-151.0,0.00019178,2]
[350032584,1737582644836,-151.0,0.00019178,2]
[350032587,1737582644846,-182.821268,0.00019178,2]
[350032589,1737582644855,-500.0,0.00019178,2]
[350032590,1737582644864,-321.789878,0.00019178,2]
[350032592,1737582644875,-321.789878,0.00019178,2]
[350032595,1737582644884,-321.789878,0.00019178,2]
[350032597,1737582644894,-321.789878,0.00019178,2]
[350032598,1737582644903,-321.789878,0.00019178,2]
[350032600,1737582644914,-321.789878,0.00019178,2]
[350032603,1737582644924,-500.0,0.00019178,2]
[350032605,1737582644934,-321.789878,0.00019178,2]
[350032607,1737582644943,-321.789878,0.00019178,2]
[350032609,1737582644953,-321.789878,0.00019178,2]
[350032611,1737582644963,-321.789878,0.00019178,2]
[350032613,1737582644973,-321.789878,0.00019178,2]
[350032615,1737582644982,-321.789878,0.00019178,2]
[350032617,1737582644992,-500.0,0.00019178,2]
[350032619,1737582645000,-151.0,0.00019178,2]
[350032621,1737582645010,-151.0,0.00019178,2]
[350032623,1737582645019,-151.0,0.00019178,2]
[350032625,1737582645028,-151.0,0.00019178,2]
[350032627,1737582645037,-151.0,0.00019178,2]
[350032629,1737582645047,-500.0,0.00019178,2]
[350032631,1737582645055,-151.0,0.00019178,2]
[350032633,1737582645065,-500.0,0.00019178,2]
[350032635,1737582645074,-500.0,0.00019178,2]
[350032636,1737582645083,-500.0,0.00019178,2]
[350032638,1737582645093,-500.0,0.00019178,2]
[350032640,1737582645108,-516.99,0.00019178,2]
[350032642,1737582645117,-500.0,0.00019178,2]
[350032644,1737582645126,-500.0,0.00019178,2]
[350032646,1737582645135,-341.80734707,0.00019178,2]
[350032648,1737582645144,-1494.944522,0.00019178,2]
[350032650,1737582645154,-1494.944522,0.00019178,2]
[350032652,1737582645165,-1494.944522,0.00019178,2]
[350032654,1737582645174,-1494.944522,0.00019178,2]
[350032656,1737582645184,-1494.944522,0.00019178,2]
[350032658,1737582645193,-1494.944522,0.00019178,2]
[350032660,1737582645202,-1494.944522,0.00019178,2]
[350032662,1737582645211,-1494.944522,0.00019178,2]
[350032664,1737582645221,-1494.944522,0.00019178,2]
[350032666,1737582645231,-1494.944522,0.00019178,2]
[350032668,1737582645240,-500.0,0.00019178,2]
[350032670,1737582645249,-1494.944522,0.00019178,2]
[350032672,1737582645258,-500.0,0.00019178,2]
[350032674,1737582645267,-1494.944522,0.00019178,2]
[350032676,1737582645276,-500.0,0.00019178,2]
[350032678,1737582645285,-500.0,0.00019178,2]
[350032680,1737582645294,-473.59,0.00019178,2]
[350032682,1737582645303,-1112.63,0.00019178,2]
[350032684,1737582645312,-908.43,0.00019178,2]
[350032686,1737582645321,-500.0,0.00019178,2]
[350032688,1737582645330,-500.0,0.00019178,2]
[350032690,1737582645339,-565.00843894,0.00019178,2]
[350032692,1737582645349,-1174.23,0.00019178,2]
[350032694,1737582645358,-500.0,0.00019178,2]
[350032696,1737582645368,-1382.08,0.00019178,2]
[350032698,1737582645378,-151.0,0.00019178,2]
[350032700,1737582645387,-151.0,0.00019178,2]
[350032702,1737582645396,-151.0,0.00019178,2]
[350032704,1737582645405,-151.0,0.00019178,2]
[350032706,1737582645414,-151.0,0.00019178,2]
[350032708,1737582645424,-500.0,0.00019178,2]
[350032710,1737582645433,-5216.0911052,0.00019178,11]
[350032712,1737582645443,-713.08708692,0.00019198,2]
[350032714,1737582645452,-151.0,0.00019199,2]
[350032716,1737582645461,-179.176531,0.00019199,2]
[350032718,1737582645470,-151.0,0.00019199,2]
[350032720,1737582645481,-179.176531,0.00019199,2]
[350032722,1737582645493,-151.0,0.00019199,2]
[350032724,1737582645502,-160.0,0.00019199,2]
[350032726,1737582645512,-161.50234174,0.00019199,2]
[350032728,1737582645523,-42968.23616309,0.000192,15]
[350032730,1737582645536,-547.63480592,0.000192,15]
[350032732,1737582645547,-3459.95513365,0.000192,15]
[350032735,1737582645559,-4350.07039355,0.000192,15]
[350032737,1737582645570,-1571.55613673,0.000192,15]
[350032833,1737582646502,-133740.74167988,0.000192,15]
[350032841,1737582646566,-452.49895,0.000192,15]
[350032845,1737582646594,-2103.32600118,0.000192,15]
[350032847,1737582646605,-66148.55763379,0.000192,15]
[350032851,1737582646634,-378.2791492,0.000192,15]
[350033774,1737583537036,174.294711,0.00013973,2]
[350033776,1737583642090,-200.61406489,0.00018,2]
[350033777,1737583642112,-28.19981121,0.00018141,2]
[350033832,1737583832812,-267.99041579,0.00018141,2]
[350033834,1737583832822,-376.024,0.0001824,2]
[350033836,1737583832831,-465.00224259,0.00018811,2]
[350033838,1737583832841,-276.62675574,0.000189,2]
[350033839,1737583832850,-500.0,0.00018903,2]
[350033842,1737583832859,-276.64,0.00019021,2]
[350033844,1737583832869,-166.0,0.00019047,2]
[350033845,1737583832882,-160.88700972,0.00019078,2]
[350033847,1737583832891,-254.28177141,0.00019078,2]
[350033849,1737583832900,-247.80377858,0.00019172,2]
[350033851,1737583832909,-241.028,0.00019177,2]
[350033854,1737583832920,-300.0,0.00019177,2]
[350033856,1737583832930,-505.68508662,0.00019178,2]
[350033858,1737583832939,-621.98851652,0.00019178,2]
[350033860,1737583832952,-500.0,0.00019178,2]
[350033862,1737583832961,-500.0,0.00019178,2]
[350033864,1737583832971,-581.11227463,0.00019178,2]
[350033866,1737583832981,-500.0,0.00019178,2]
[350033868,1737583832991,-500.0,0.00019178,2]
[350033869,1737583833002,-500.0,0.00019178,2]
[350033872,1737583833011,-500.0,0.00019178,2]
[350033873,1737583833020,-500.0,0.00019178,2]
[350033875,1737583833029,-500.61788161,0.00019178,2]
[350033877,1737583833038,-312.51929985,0.00019178,2]
[350033879,1737583833048,-500.0,0.00019178,2]
[350033881,1737583833057,-500.0,0.00019178,2]
[350033883,1737583833066,-500.0,0.00019178,2]
[350033886,1737583833076,-500.82034286,0.00019178,2]
[350033888,1737583833085,-500.0,0.00019178,2]
[350033890,1737583833095,-311.51297983,0.00019178,2]
[350033892,1737583833105,-500.0,0.00019178,2]
[350033894,1737583833114,-500.0,0.00019178,2]
[350033896,1737583833123,-500.0,0.00019178,2]
[350033897,1737583833132,-500.0,0.00019178,2]
[350033900,1737583833142,-175.9678389,0.00019178,2]
[350033902,1737583833151,-500.0,0.00019178,2]
[350033905,1737583833170,-602.44756702,0.00019178,2]
[350033907,1737583833181,-500.0,0.00019178,2]
[350033909,1737583833190,-500.0,0.00019178,2]
[350033911,1737583833202,-500.0,0.00019178,2]
[350033913,1737583833212,-596.75558583,0.00019178,2]
[350033915,1737583833221,-521.40908399,0.00019178,2]
[350033917,1737583833231,-500.0,0.00019178,2]
[350033919,1737583833241,-500.0,0.00019178,2]
[350033921,1737583833251,-500.0,0.00019178,2]
[350033923,1737583833260,-500.0,0.00019178,2]
[350033925,1737583833270,-500.0,0.00019178,2]
[350033927,1737583833279,-500.0,0.00019178,2]
[350033929,1737583833289,-500.0,0.00019178,2]
[350033931,1737583833299,-500.0,0.00019178,2]
[350033933,1737583833309,-150.07739711,0.00019178,2]
[350033952,1737583833469,-500.0,0.00019178,2]
[350033954,1737583833479,-500.0,0.00019178,2]
[350033956,1737583833488,-500.0,0.00019178,2]
[350033958,1737583833498,-652.28,0.00019178,2]
[350033960,1737583833507,-500.0,0.00019178,2]
[350033962,1737583833517,-500.0,0.00019178,2]
[350033965,1737583833527,-583.98,0.00019178,2]
[350033966,1737583833536,-500.0,0.00019178,2]
[350033969,1737583833546,-500.0,0.00019178,2]
[350033971,1737583833556,-500.0,0.00019178,2]
[350033972,1737583833566,-500.0,0.00019178,2]
[350033974,1737583833575,-500.0,0.00019178,2]
[350033977,1737583833585,-500.0,0.00019178,2]
[350033979,1737583833594,-538.41,0.00019178,2]
[350033981,1737583833603,-500.0,0.00019178,2]
[350033983,1737583833613,-500.0,0.00019178,2]
[350033985,1737583833622,-500.0,0.00019178,2]
[350033987,1737583833631,-500.0,0.00019178,2]
[350033989,1737583833640,-500.0,0.00019178,2]
[350033991,1737583833649,-500.0,0.00019178,2]
[350033993,1737583833658,-500.0,0.00019178,2]
[350033995,1737583833668,-505.36710748,0.00019178,2]
[350033997,1737583833678,-500.0,0.00019178,2]
[350033999,1737583833687,-500.0,0.00019178,2]
[350034001,1737583833699,-500.0,0.00019178,2]
[350034003,1737583833707,-500.0,0.00019178,2]
[350034005,1737583833717,-500.0,0.00019178,2]
[350034007,1737583833725,-500.0,0.00019178,2]
[350034009,1737583833735,-500.0,0.00019178,2]
[350034011,1737583833744,-500.0,0.00019178,2]
[350034013,1737583833753,-500.0,0.00019178,2]
[350034015,1737583833762,-500.0,0.00019178,2]
[350034017,1737583833772,-500.0,0.00019178,2]
[350034019,1737583833781,-500.0,0.00019178,2]
[350034021,1737583833790,-500.0,0.00019178,2]
[350034023,1737583833799,-500.0,0.00019178,2]
[350034025,1737583833808,-500.0,0.00019178,2]
[350034027,1737583833817,-500.0,0.00019178,2]
[350034029,1737583833826,-500.0,0.00019178,2]
[350034031,1737583833835,-500.0,0.00019178,2]
[350034032,1737583833845,-500.0,0.00019178,2]
[350034035,1737583833854,-501.94062639,0.00019178,2]
[350034037,1737583833864,-500.0,0.00019178,2]
[350034038,1737583833876,-500.0,0.00019178,2]
[350034040,1737583833887,-5945.91,0.00019178,2]
[350034043,1737583833896,-500.0,0.00019178,2]
[350034045,1737583833906,-500.0,0.00019178,2]
[350034047,1737583833918,-500.0,0.00019178,2]
[350034049,1737583833927,-500.0,0.00019178,2]
[350034051,1737583833936,-500.0,0.00019178,2]
[350034052,1737583833947,-500.0,0.00019178,2]
[350034055,1737583833958,-500.0,0.00019178,2]
[350034057,1737583833967,-554.86318667,0.00019178,2]
[350034059,1737583833980,-500.0,0.00019178,2]
[350034061,1737583833990,-500.0,0.00019178,2]
[350034063,1737583833999,-237.93522579,0.00019178,2]
[350034065,1737583834009,-548.53,0.00019178,2]
[350034067,1737583834019,-500.0,0.00019178,2]
[350034069,1737583834028,-500.0,0.00019178,2]
[350034071,1737583834038,-500.0,0.00019178,2]
[350034073,1737583834049,-500.0,0.00019178,2]
[350034075,1737583834059,-500.0,0.00019178,2]
[350034077,1737583834068,-37.84115051,0.00019178,2]
[350034079,1737583834082,-406.14362685,0.00019178,2]
[350034082,1737583834093,-622.86237315,0.00019178,2]
[350034084,1737583834105,-111.31762685,0.00019178,2]
[350034086,1737583834114,-2338.26,0.00019178,2]
[350034087,1737583834123,-1487.61,0.00019178,2]
[350034089,1737583834133,-500.0,0.00019178,2]
[350034092,1737583834142,-500.0,0.00019178,2]
[350034094,1737583834152,-500.0,0.00019178,2]
[350034095,1737583834161,-500.0,0.00019178,2]
[350034098,1737583834171,-500.0,0.00019178,2]
[350034100,1737583834181,-741.25,0.00019178,2]
[350034102,1737583834190,-500.0,0.00019178,2]
[350034103,1737583834203,-500.0,0.00019178,2]
[350034106,1737583834212,-10446.75265716,0.00019178,2]
[350034462,1737583840808,-1639.24215556,0.00019178,2]
[350034479,1737583840968,-4585.09865411,0.00019178,2]
[350034979,1737584619207,173.81172,0.00013973,2]
[350034996,1737584966154,-300.25371378,0.000167,2]
[350034997,1737584966175,-300.0,0.00016949,2]
[350034998,1737584966198,-18935.41785929,0.0001695,2]
[350035043,1737585032890,-158.46268111,0.0001695,2]
[350035045,1737585032900,-325.731696,0.00017067,2]
[350035046,1737585032909,-490.7942443,0.00017483,2]
[350035047,1737585032919,-1642.61137859,0.00017492,2]
[350035048,1737585032967,-2158.46246891,0.00017492,2]
[350035049,1737585032977,-300.0,0.00017819,2]
[350035050,1737585032986,-3596.57246629,0.0001782,2]
[350035051,1737585032998,-20291.09084048,0.0001782,2]
[350035052,1737585033123,-1012.33669323,0.0001782,2]
[350035053,1737585033134,-536.78242524,0.000189,2]
[350035054,1737585033143,-5045.88222426,0.00019027,2]
[350035055,1737585033155,-493.65,0.00019027,2]
[350035056,1737585033167,-10379.41028985,0.00019027,2]
[350035057,1737585033176,-152.0,0.00019035,2]
[350035058,1737585033186,-12907.61081162,0.000191,5]
[350035059,1737585033195,-20060.25593682,0.000191,3]
[350035060,1737585033207,-663.21940979,0.000191,3]
[350035110,1737585039063,-9127.21305792,0.000191,3]
[350035112,1737585039075,-6716.31159547,0.000191,3]
[350035114,1737585039084,-2465.75861875,0.00019114,5]
[350035138,1737585043896,-205.0468682,0.00018173,2]
[350035140,1737585043906,-151.0,0.00018979,2]
[350035142,1737585043915,-151.0,0.00018979,2]
[350035144,1737585043924,-159.0,0.00018979,2]
[350035146,1737585043934,-151.0,0.00018979,2]
[350035148,1737585043943,-159.0,0.00018979,2]
[350035150,1737585043953,-151.0,0.00018979,2]
[350035152,1737585043962,-159.0,0.00018979,2]
[350035154,1737585043971,-151.0,0.00018979,2]
[350035157,1737585043981,-159.0,0.00018979,2]
[350035159,1737585043991,-151.0,0.00018979,2]
[350035160,1737585044000,-151.0,0.00018979,2]
[350035162,1737585044011,-159.0,0.00018979,2]
[350035165,1737585044021,-151.0,0.00018979,2]
[350035167,1737585044030,-159.0,0.00018979,2]
[350035169,1737585044040,-483.24606441,0.00019114,5]
[350035171,1737585044049,-2301.03841326,0.00019114,2]
[350035443,1737585046718,-164.27,0.00018979,2]
[350035445,1737585046728,-17698.96158674,0.00019114,2]
[350035447,1737585046737,-20000.0,0.00019166,2]
[350035449,1737585046746,-155.7,0.00019169,2]
[350035451,1737585046756,-500.0,0.00019173,2]
[350035453,1737585046766,-500.0,0.00019173,2]
[350035455,1737585046775,-500.0,0.00019173,2]
[350035457,1737585046784,-500.0,0.00019173,2]
[350035459,1737585046793,-274.62160827,0.00019173,2]
[350035461,1737585046802,-500.0,0.00019173,2]
[350035463,1737585046812,-500.0,0.00019173,2]
[350035465,1737585046821,-500.0,0.00019177,2]
[350035467,1737585046830,-286.71490683,0.00019177,2]
[350035469,1737585046839,-275.8760074,0.00019177,2]
[350035471,1737585046849,-500.0,0.00019177,2]
[350035473,1737585046858,-500.0,0.00019177,2]
[350035475,1737585046867,-500.0,0.00019177,2]
[350035477,1737585046876,-500.0,0.00019177,2]
[350035479,1737585046885,-365.13175081,0.00019177,2]
[350035481,1737585046895,-500.0,0.00019177,2]
[350035483,1737585046904,-500.0,0.00019177,2]
[350035485,1737585046913,-500.0,0.00019177,2]
[350035487,1737585046920,-258.2050811,0.00019177,2]
[350035489,1737585046929,-389.19103954,0.00019177,2]
[350035491,1737585046938,-500.0,0.00019177,2]
[350035493,1737585046948,-503.43820277,0.00019178,2]
[350035495,1737585046958,-226.30262766,0.00019178,2]
[350035497,1737585046967,-500.0,0.00019178,2]
[350035499,1737585046977,-500.0,0.00019178,2]
[350035501,1737585046988,-500.0,0.00019178,2]
[350035503,1737585046998,-500.0,0.00019178,2]
[350035505,1737585047006,-500.0,0.00019178,2]
[350035507,1737585047015,-151.0,0.00019178,2]
[350035509,1737585047024,-500.0,0.00019178,2]
[350035511,1737585047034,-151.0,0.00019178,2]
[350035513,1737585047043,-151.0,0.00019178,2]
[350035515,1737585047052,-151.0,0.00019178,2]
[350035517,1737585047061,-151.0,0.00019178,2]
[350035519,1737585047071,-151.0,0.00019178,2]
[350035520,1737585047080,-500.0,0.00019178,2]
[350035523,1737585047091,-773.0,0.00019178,2]
[350035524,1737585047099,-572.05680866,0.00019178,2]
[350035526,1737585047109,-287.44593701,0.00019178,2]
[350035528,1737585047120,-151.0,0.00019178,2]
[350035530,1737585047132,-151.0,0.00019178,2]
[350035532,1737585047142,-500.0,0.00019178,2]
[350035535,1737585047153,-500.0,0.00019178,2]
[350035537,1737585047162,-500.0,0.00019178,2]
[350035538,1737585047171,-644.89,0.00019178,2]
[350035541,1737585047181,-317.28533885,0.00019178,2]
[350035542,1737585047190,-500.0,0.00019178,2]
[350035545,1737585047199,-500.0,0.00019178,2]
[350035547,1737585047209,-500.0,0.00019178,2]
[350035549,1737585047218,-500.0,0.00019178,2]
[350035551,1737585047227,-500.0,0.00019178,2]
[350035553,1737585047236,-213.75687653,0.00019178,2]
[350035564,1737585047343,-500.0,0.00019178,2]
[350035566,1737585047354,-500.0,0.00019178,2]
[350035568,1737585047363,-500.0,0.00019178,2]
[350035571,1737585047372,-174.16,0.00019178,2]
[350035573,1737585047382,-621.95,0.00019178,2]
[350035575,1737585047391,-500.0,0.00019178,2]
[350035576,1737585047400,-500.0,0.00019178,2]
[350035578,1737585047409,-500.0,0.00019178,2]
[350035580,1737585047418,-500.0,0.00019178,2]
[350035582,1737585047427,-500.0,0.00019178,2]
[350035584,1737585047437,-500.0,0.00019178,2]
[350035586,1737585047446,-500.0,0.00019178,7]
[350035588,1737585047455,-271.51260207,0.00019178,2]
[350035590,1737585047465,-500.0,0.00019178,2]
[350035592,1737585047475,-500.0,0.00019178,2]
[350035594,1737585047484,-500.0,0.00019178,2]
[350035596,1737585047494,-151.0,0.00019178,2]
[350035598,1737585047504,-151.0,0.00019178,2]
[350035600,1737585047513,-151.0,0.00019178,2]
[350035602,1737585047522,-151.0,0.00019178,2]
[350035604,1737585047531,-151.0,0.00019178,2]
[350035606,1737585047540,-500.0,0.00019178,2]
[350035609,1737585047549,-500.0,0.00019178,2]
[350035610,1737585047559,-500.0,0.00019178,2]
[350035612,1737585047568,-500.0,0.00019178,2]
[350035615,1737585047577,-500.0,0.00019178,2]
[350035616,1737585047587,-605.05403217,0.00019178,2]
[350035619,1737585047596,-500.0,0.00019178,2]
[350035620,1737585047605,-151.0,0.00019178,2]
[350035623,1737585047615,-151.0,0.00019178,2]
[350035625,1737585047625,-151.0,0.00019178,2]
[350035627,1737585047634,-151.0,0.00019178,2]
[350035629,1737585047643,-151.0,0.00019178,2]
[350035631,1737585047652,-151.0,0.00019178,2]
[350035632,1737585047661,-500.0,0.00019178,2]
[350035633,1737585047671,-500.0,0.00019178,2]
[350035634,1737585047679,-151.0,0.00019178,2]
[350035635,1737585047689,-500.0,0.00019178,2]
[350035636,1737585047699,-500.0,0.00019178,2]
[350035637,1737585047709,-500.0,0.00019178,2]
[350035638,1737585047718,-500.0,0.00019178,2]
[350035639,1737585047727,-151.0,0.00019178,2]
[350035640,1737585047736,-151.0,0.00019178,2]
[350035641,1737585047746,-500.0,0.00019178,2]
[350035642,1737585047756,-151.0,0.00019178,2]
[350035643,1737585047765,-500.0,0.00019178,2]
[350035644,1737585047774,-151.0,0.00019178,2]
[350035645,1737585047783,-151.0,0.00019178,2]
[350035646,1737585047792,-151.0,0.00019178,2]
[350035647,1737585047801,-500.0,0.00019178,2]
[350035648,1737585047810,-500.0,0.00019178,2]
[350035649,1737585047820,-500.0,0.00019178,2]
[350035650,1737585047830,-266.632233,0.00019178,2]
[350035652,1737585047839,-266.632233,0.00019178,2]
[350035654,1737585047849,-266.632233,0.00019178,2]
[350035656,1737585047858,-266.632233,0.00019178,2]
[350035658,1737585047867,-266.632233,0.00019178,2]
[350035660,1737585047876,-266.632233,0.00019178,2]
[350035662,1737585047886,-500.0,0.00019178,2]
[350035664,1737585047897,-500.0,0.00019178,2]
[350035666,1737585047906,-500.0,0.00019178,2]
[350035668,1737585047916,-727.193113,0.00019178,2]
[350035670,1737585047926,-500.0,0.00019178,2]
[350035672,1737585047935,-727.193113,0.00019178,2]
[350035674,1737585047945,-727.193113,0.00019178,2]
[350035676,1737585047954,-500.0,0.00019178,2]
[350035678,1737585047964,-500.0,0.00019178,2]
[350035680,1737585047974,-500.0,0.00019178,2]
[350035681,1737585047983,-151.0,0.00019178,2]